fUST/lending_fUST_20251010
["ID","MTS","AMOUNT","RATE_DAILY","PERIOD"]
[390507055,1760067057633,-504.20855328,0.0001726,2]
[390507057,1760067057642,-500.0,0.0001726,2]
[390507059,1760067057651,-297.92564324,0.0001726,2]
[390507061,1760067057659,-500.0,0.0001726,2]
[390507063,1760067057670,-500.0,0.0001726,2]
[390507065,1760067057679,-500.0,0.0001726,2]
[390507067,1760067057688,-500.0,0.0001726,2]
[390507069,1760067057697,-500.0,0.0001726,2]
[390507071,1760067057706,-500.0,0.0001726,2]
[390507073,1760067057715,-500.0,0.0001726,2]
[390507076,1760067057725,-500.0,0.0001726,2]
[390507078,1760067057734,-500.0,0.0001726,2]
[390507080,1760067057743,-500.0,0.0001726,2]
[390507082,1760067057751,-500.0,0.0001726,2]
[390507084,1760067057760,-503.34318788,0.0001726,2]
[390507086,1760067057769,-503.4541586,0.0001726,2]
[390507088,1760067057778,-500.0,0.0001726,2]
[390507090,1760067057787,-500.0,0.0001726,2]
[390507092,1760067057796,-382.25506553,0.0001726,2]
[390507094,1760067057810,-500.0,0.0001726,2]
[390507096,1760067057819,-1527.49124187,0.0001726,2]
[390507098,1760067057828,-199.52791903,0.0001726,2]
[390507100,1760067057838,-500.0,0.0001726,2]
[390507102,1760067057848,-797.31356444,0.0001726,2]
[390507104,1760067057857,-500.0,0.0001726,2]
[390507106,1760067057866,-503.24450141,0.0001726,2]
[390507108,1760067057877,-500.0,0.0001726,2]
[390507122,1760067057998,-504.46235689,0.0001726,2]
[390507124,1760067058007,-563.39335024,0.0001726,2]
[390507126,1760067058016,-502.20049558,0.0001726,2]
[390507128,1760067058026,-500.0,0.0001726,2]
[390507130,1760067058035,-500.0,0.0001726,2]
[390507132,1760067058044,-500.0,0.0001726,2]
[390507134,1760067058054,-500.0,0.0001726,2]
[390507136,1760067058064,-154.856397,0.0001726,2]
[390507138,1760067058073,-500.0,0.0001726,2]
[390507140,1760067058086,-705.90560146,0.0001726,2]
[390507142,1760067058095,-500.0,0.0001726,2]
[390507144,1760067058104,-500.0,0.0001726,2]
[390507146,1760067058113,-500.0,0.0001726,2]
[390507148,1760067058122,-500.0,0.0001726,2]
[390507150,1760067058131,-500.0,0.0001726,2]
[390507152,1760067058140,-500.0,0.0001726,2]
[390507154,1760067058149,-500.0,0.0001726,2]
[390507156,1760067058158,-500.0,0.0001726,2]
[390507158,1760067058169,-500.0,0.0001726,2]
[390507160,1760067058178,-199.27098687,0.0001726,2]
[390507162,1760067058187,-500.0,0.0001726,2]
[390507164,1760067058196,-500.0,0.0001726,2]
[390507167,1760067058205,-151.0,0.0001726,2]
[390507169,1760067058214,-503.03222366,0.0001726,2]
[390507171,1760067058223,-151.0,0.0001726,2]
[390507173,1760067058232,-500.0,0.0001726,2]
[390507175,1760067058241,-500.0,0.0001726,2]
[390507177,1760067058250,-500.0,0.0001726,2]
[390507179,1760067058260,-1090.62,0.0001726,2]
[390507181,1760067058269,-500.0,0.0001726,2]
[390507183,1760067058278,-500.0,0.0001726,2]
[390507185,1760067058287,-721.87,0.0001726,2]
[390507187,1760067058296,-151.0,0.0001726,2]
[390507189,1760067058305,-151.0,0.0001726,2]
[390507191,1760067058315,-500.0,0.0001726,2]
[390507193,1760067058324,-500.0,0.0001726,2]
[390507195,1760067058333,-1364.02,0.0001726,2]
[390507197,1760067058342,-500.0,0.0001726,2]
[390507199,1760067058351,-500.0,0.0001726,2]
[390507201,1760067058360,-500.0,0.0001726,2]
[390507203,1760067058369,-500.0,0.0001726,2]
[390507205,1760067058378,-500.0,0.0001726,2]
[390507207,1760067058387,-500.0,0.0001726,2]
[390507209,1760067058396,-208.468505,0.0001726,2]
[390507211,1760067058405,-208.468505,0.0001726,2]
[390507213,1760067058414,-1306.93,0.0001726,2]
[390507215,1760067058423,-618.43,0.0001726,2]
[390507217,1760067058432,-208.468505,0.0001726,2]
[390507219,1760067058442,-500.0,0.0001726,2]
[390507221,1760067058451,-208.46851,0.0001726,2]
[390507223,1760067058460,-151.0,0.0001726,2]
[390507225,1760067058469,-151.0,0.0001726,2]
[390507227,1760067058478,-977.0,0.0001726,2]
[390507229,1760067058487,-500.0,0.0001726,2]
[390507231,1760067058497,-500.0,0.0001726,2]
[390507233,1760067058506,-500.0,0.0001726,2]
[390507235,1760067058515,-500.0,0.0001726,2]
[390507237,1760067058525,-500.0,0.0001726,2]
[390507239,1760067058535,-500.0,0.0001726,2]
[390507241,1760067058544,-500.0,0.0001726,2]
[390507243,1760067058554,-500.0,0.0001726,2]
[390507245,1760067058565,-500.0,0.0001726,2]
[390507247,1760067058575,-500.0,0.0001726,2]
[390507249,1760067058585,-500.0,0.0001726,2]
[390507251,1760067058595,-500.0,0.0001726,2]
[390507253,1760067058604,-500.0,0.0001726,2]
[390507255,1760067058613,-500.0,0.0001726,2]
[390507257,1760067058622,-500.0,0.0001726,2]
[390507259,1760067058631,-500.0,0.0001726,2]
[390507261,1760067058641,-502.11849293,0.0001726,2]
[390507263,1760067058650,-1254.35,0.0001726,2]
[390507265,1760067058660,-500.0,0.0001726,2]
[390507267,1760067058669,-500.0,0.0001726,2]
[390507269,1760067058679,-500.0,0.0001726,2]
[390507271,1760067058689,-500.0,0.0001726,2]
[390507274,1760067058698,-502.77583653,0.0001726,2]
[390507276,1760067058707,-502.78605023,0.0001726,2]
[390507278,1760067058716,-500.0,0.0001726,2]
[390507280,1760067058725,-500.0,0.0001726,2]
[390507282,1760067058732,-500.0,0.0001726,2]
[390507284,1760067058740,-500.0,0.0001726,2]
[390507286,1760067058749,-500.0,0.0001726,2]
[390507288,1760067058758,-500.0,0.0001726,2]
[390507291,1760067058767,-500.0,0.0001726,2]
[390507293,1760067058775,-1300.53,0.0001726,2]
[390507295,1760067058783,-500.0,0.0001726,2]
[390507297,1760067058792,-500.0,0.0001726,2]
[390507298,1760067058799,-500.0,0.0001726,2]
[390507301,1760067058814,-500.0,0.0001726,2]
[390507302,1760067058821,-500.0,0.0001726,2]
[390507304,1760067058827,-500.0,0.0001726,2]
[390507306,1760067058835,-151.0,0.0001726,2]
[390507308,1760067058844,-983.84,0.0001726,2]
[390507310,1760067058851,-7851.8,0.0001726,2]
[390507312,1760067058858,-489.84391691,0.0001726,2]
[390507314,1760067058866,-500.0,0.0001726,2]
[390507316,1760067058874,-500.0,0.0001726,2]
[390507318,1760067058884,-500.0,0.0001726,2]
[390507320,1760067058892,-1034.78,0.0001726,2]
[390507322,1760067058900,-500.0,0.0001726,2]
[390507324,1760067058907,-500.0,0.0001726,2]
[390507326,1760067058916,-500.0,0.0001726,2]
[390507329,1760067058931,-500.0,0.0001726,2]
[390507332,1760067058946,-896.78,0.0001726,2]
[390507334,1760067058958,-500.0,0.0001726,2]
[390507336,1760067058971,-500.0,0.0001726,2]
[390507339,1760067058984,-500.0,0.0001726,2]
[390507341,1760067058999,-500.0,0.0001726,2]
[390507344,1760067059013,-1025.52,0.0001726,2]
[390507346,1760067059027,-500.0,0.0001726,2]
[390507349,1760067059041,-500.0,0.0001726,2]
[390507351,1760067059051,-500.0,0.0001726,2]
[390507354,1760067059065,-529.63,0.0001726,2]
[390507356,1760067059076,-500.0,0.0001726,2]
[390507358,1760067059091,-500.0,0.0001726,2]
[390507361,1760067059104,-500.0,0.0001726,2]
[390507364,1760067059119,-500.0,0.0001726,2]
[390507366,1760067059136,-500.0,0.0001726,2]
[390507369,1760067059149,-791.06,0.0001726,2]
[390507371,1760067059160,-500.0,0.0001726,2]
[390507374,1760067059174,-500.0,0.0001726,2]
[390507376,1760067059190,-500.0,0.0001726,2]
[390507378,1760067059201,-500.0,0.0001726,2]
[390507381,1760067059215,-512.41,0.0001726,2]
[390507383,1760067059231,-512.41,0.0001726,2]
[390507385,1760067059243,-500.0,0.0001726,2]
[390507388,1760067059255,-500.0,0.0001726,2]
[390507390,1760067059267,-500.0,0.0001726,2]
[390507392,1760067059280,-500.0,0.0001726,2]
[390507395,1760067059292,-500.0,0.0001726,2]
[390507397,1760067059305,-2816.71,0.0001726,2]
[390507399,1760067059319,-500.0,0.0001726,2]
[390507401,1760067059331,-500.0,0.0001726,2]
[390507404,1760067059344,-1747.02,0.0001726,2]
[390507406,1760067059357,-2423.98,0.0001726,2]
[390507409,1760067059370,-500.0,0.0001726,2]
[390507411,1760067059383,-500.0,0.0001726,2]
[390507413,1760067059396,-500.0,0.0001726,2]
[390507416,1760067059409,-1668.53,0.0001726,2]
[390507418,1760067059422,-500.0,0.0001726,2]
[390507420,1760067059433,-500.0,0.0001726,2]
[390507423,1760067059446,-500.0,0.0001726,2]
[390507425,1760067059458,-3689.38,0.0001726,2]
[390507427,1760067059470,-500.0,0.0001726,2]
[390507429,1760067059483,-6219.03,0.0001726,2]
[390507432,1760067059495,-500.0,0.0001726,2]
[390507434,1760067059508,-500.0,0.0001726,2]
[390507436,1760067059521,-2842.49,0.0001726,2]
[390507439,1760067059533,-930.18,0.0001726,2]
[390507441,1760067059545,-500.0,0.0001726,2]
[390507443,1760067059558,-500.0,0.0001726,2]
[390507446,1760067059570,-500.0,0.0001726,2]
[390507448,1760067059583,-500.0,0.0001726,2]
[390507450,1760067059596,-502.83694199,0.0001726,2]
[390507453,1760067059608,-500.0,0.0001726,2]
[390507455,1760067059621,-500.0,0.0001726,2]
[390507457,1760067059633,-937.72,0.0001726,2]
[390507460,1760067059646,-1009.55,0.0001726,2]
[390507462,1760067059659,-500.0,0.0001726,2]
[390507464,1760067059672,-785.66,0.0001726,2]
[390507467,1760067059685,-500.0,0.0001726,2]
[390507469,1760067059697,-500.0,0.0001726,2]
[390507472,1760067059710,-503.99328414,0.0001726,2]
[390507474,1760067059726,-500.0,0.0001726,2]
[390507476,1760067059740,-500.0,0.0001726,2]
[390507479,1760067059754,-500.0,0.0001726,2]
[390507481,1760067059767,-5374.97,0.0001726,2]
[390507483,1760067059780,-500.0,0.0001726,2]
[390507486,1760067059794,-1091.46,0.0001726,2]
[390507488,1760067059810,-500.0,0.0001726,2]
[390507490,1760067059824,-500.0,0.0001726,2]
[390507492,1760067059838,-500.0,0.0001726,2]
[390507495,1760067059852,-500.0,0.0001726,2]
[390507497,1760067059865,-961.78,0.0001726,2]
[390507499,1760067059878,-1180.58,0.0001726,2]
[390507502,1760067059890,-687.76,0.0001726,2]
[390507504,1760067059903,-1569.85,0.0001726,2]
[390507506,1760067059914,-840.06,0.0001726,2]
[390507509,1760067059927,-842.61,0.0001726,2]
[390507511,1760067059939,-500.0,0.0001726,2]
[390507513,1760067059952,-500.0,0.0001726,2]
[390507516,1760067059964,-500.0,0.0001726,2]
[390507518,1760067059977,-1455.99,0.0001726,2]
[390507520,1760067059989,-500.0,0.0001726,2]
[390507523,1760067060002,-501.4714528,0.0001726,2]
[390507525,1760067060015,-500.0,0.0001726,2]
[390507527,1760067060026,-500.0,0.0001726,2]
[390507529,1760067060039,-4407.34,0.0001726,2]
[390507532,1760067060052,-500.0,0.0001726,2]
[390507534,1760067060067,-500.0,0.0001726,2]
[390507536,1760067060080,-500.0,0.0001726,2]
[390507539,1760067060092,-500.0,0.0001726,2]
[390507541,1760067060107,-500.0,0.0001726,2]
[390507544,1760067060120,-1275.82,0.0001726,2]
[390507546,1760067060133,-748.07,0.0001726,2]
[390507548,1760067060146,-1127.42,0.0001726,2]
[390507550,1760067060158,-500.0,0.0001726,2]
[390507553,1760067060171,-500.0,0.0001726,2]
[390507555,1760067060184,-613.47,0.0001726,2]
[390507558,1760067060197,-3149.72,0.0001726,2]
[390507560,1760067060209,-500.0,0.0001726,2]
[390507562,1760067060223,-500.0,0.0001726,2]
[390507564,1760067060232,-637.86,0.0001726,2]
[390507566,1760067060242,-500.0,0.0001726,2]
[390507586,1760067060429,-500.0,0.0001726,2]
[390507590,1760067060457,-500.0,0.0001726,2]
[390507592,1760067060467,-500.0,0.0001726,2]
[390507594,1760067060477,-4201.25,0.0001726,2]
[390507596,1760067060486,-375.81580885,0.0001726,2]
[390507598,1760067060495,-2177.95,0.0001726,2]
[390507600,1760067060506,-500.0,0.0001726,2]
[390507602,1760067060515,-603.19,0.0001726,2]
[390507604,1760067060525,-500.0,0.0001726,2]
[390507606,1760067060534,-500.0,0.0001726,2]
[390507608,1760067060543,-840.96,0.0001726,2]
[390507610,1760067060552,-504.28372938,0.0001726,2]
[390507611,1760067060564,-500.0,0.0001726,2]
[390507613,1760067060573,-880.64,0.0001726,2]
[390507615,1760067060583,-500.0,0.0001726,2]
[390507617,1760067060592,-500.0,0.0001726,2]
[390507619,1760067060602,-2925.02,0.0001726,2]
[390507621,1760067060611,-782.42,0.0001726,2]
[390507623,1760067060620,-500.0,0.0001726,2]
[390507625,1760067060630,-500.0,0.0001726,2]
[390507627,1760067060639,-503.11882151,0.0001726,2]
[390507629,1760067060649,-500.0,0.0001726,2]
[390507631,1760067060659,-1404.53,0.0001726,2]
[390507633,1760067060670,-200.0,0.0001726,2]
[390507635,1760067060680,-698.81,0.0001726,2]
[390507637,1760067060691,-500.0,0.0001726,2]
[390507639,1760067060701,-500.0,0.0001726,2]
[390507641,1760067060712,-500.0,0.0001726,2]
[390507643,1760067060723,-1305.47,0.0001726,2]
[390507645,1760067060733,-500.0,0.0001726,2]
[390507647,1760067060743,-1011.22,0.0001726,2]
[390507649,1760067060754,-500.0,0.0001726,2]
[390507651,1760067060764,-500.0,0.0001726,2]
[390507652,1760067060774,-2544.55,0.0001726,2]
[390507654,1760067060784,-826.8,0.0001726,2]
[390507656,1760067060794,-618.51,0.0001726,2]
[390507658,1760067060805,-849.84,0.0001726,2]
[390507660,1760067060822,-1923.9,0.0001726,2]
[390507662,1760067060832,-813.97,0.0001726,2]
[390507664,1760067060842,-500.0,0.0001726,2]
[390507666,1760067060853,-3527.12,0.0001726,2]
[390507668,1760067060863,-500.0,0.0001726,2]
[390507670,1760067060874,-1011.01,0.0001726,2]
[390507672,1760067060885,-500.0,0.0001726,2]
[390507674,1760067060895,-2369.71,0.0001726,2]
[390507676,1760067060905,-500.0,0.0001726,2]
[390507678,1760067060916,-500.0,0.0001726,2]
[390507680,1760067060925,-500.0,0.0001726,2]
[390507682,1760067060934,-707.25,0.0001726,2]
[390507684,1760067060944,-500.0,0.0001726,2]
[390507686,1760067060953,-536.43,0.0001726,2]
[390507688,1760067060963,-661.1,0.0001726,2]
[390507690,1760067060972,-504.14856226,0.0001726,2]
[390507692,1760067060981,-2000.7,0.0001726,2]
[390507694,1760067060991,-500.0,0.0001726,2]
[390507696,1760067060999,-500.0,0.0001726,2]
[390507698,1760067061009,-500.0,0.0001726,2]
[390507700,1760067061018,-500.0,0.0001726,2]
[390507702,1760067061027,-500.0,0.0001726,2]
[390507703,1760067061036,-500.0,0.0001726,2]
[390507704,1760067061045,-539.06,0.0001726,2]
[390507705,1760067061056,-500.0,0.0001726,2]
[390507706,1760067061068,-1042.97,0.0001726,2]
[390507707,1760067061078,-500.0,0.0001726,2]
[390507708,1760067061088,-1215.57,0.0001726,2]
[390507709,1760067061097,-1733.0,0.00017264,2]
[390507710,1760067061106,-214.21809975,0.00017273,2]
[390507711,1760067061116,-501.05544168,0.00017273,2]
[390507712,1760067061125,-500.0,0.00017273,2]
[390507713,1760067061134,-500.0,0.00017273,2]
[390507714,1760067061144,-500.0,0.00017273,2]
[390507715,1760067061153,-500.0,0.00017273,2]
[390507716,1760067061163,-500.0,0.00017273,2]
[390507717,1760067061172,-505.45386967,0.00017273,2]
[390507718,1760067061182,-642.55581265,0.00017273,2]
[390507719,1760067061191,-627.54677909,0.00017273,2]
[390507720,1760067061201,-500.0,0.00017273,2]
[390507721,1760067061210,-500.0,0.00017273,2]
[390507722,1760067061219,-500.0,0.00017273,2]
[390507723,1760067061229,-500.0,0.00017273,2]
[390507724,1760067061239,-663.0,0.00017293,2]
[390507725,1760067061248,-452.04277221,0.000173,2]
[390507726,1760067061258,-1000.0,0.00017307,2]
[390507728,1760067061268,-170.57967988,0.00017307,2]
[390507730,1760067061277,-697.108,0.00017307,2]
[390507732,1760067061287,-10648.94712485,0.00017312,2]
[390507734,1760067061297,-249.0,0.00017323,2]
[390507736,1760067061307,-3285.28889424,0.00017366,2]
[390507738,1760067061319,-168.10077244,0.00017369,2]
[390507740,1760067061328,-249.0,0.0001737,2]
[390507742,1760067061337,-860.00454176,0.00017386,2]
[390507768,1760067061567,-872.99545824,0.00017386,2]
[390507770,1760067061578,-376.85267539,0.0001739,2]
[390507773,1760067061597,-286.14732461,0.0001739,2]
[390507775,1760067061607,-151.0,0.000174,2]
[390507777,1760067061616,-375.27862981,0.00017412,2]
[390507792,1760067061751,-501.94776643,0.00016438,2]
[390507794,1760067061760,-151.0,0.00016438,2]
[390507796,1760067061770,-151.0,0.00016711,2]
[390507798,1760067061780,-500.54616081,0.00016712,2]
[390507800,1760067061788,-151.0,0.00016712,2]
[390507802,1760067061799,-2000.0,0.00016755,2]
[390507804,1760067061814,-2000.0,0.00016755,2]
[390507806,1760067061823,-2000.0,0.00016755,2]
[390507808,1760067061832,-624.72137019,0.00017412,2]
[390507810,1760067061843,-1000.0,0.00017412,2]
[390507812,1760067061853,-1000.0,0.00017412,2]
[390507814,1760067061862,-1000.0,0.00017412,2]
[390507816,1760067061873,-1000.0,0.00017412,2]
[390507818,1760067061883,-1000.0,0.00017412,2]
[390507820,1760067061893,-1000.0,0.00017412,2]
[390507822,1760067061903,-626.1350396,0.00017412,2]
[390510676,1760067188836,194.707311,0.00018975,20]
[390510683,1760067220894,376.477772,0.00018975,20]
[390510691,1760067479888,252.74,0.00015095,2]
[390510701,1760067647924,730.79473,0.00013699,2]
[390510706,1760067726722,337.889493,0.00015378,2]
[390510730,1760067820833,363.928513,0.00018975,20]
[390510735,1760067833070,188.217068,0.00018975,20]
[390510808,1760068230021,151.0,0.00015289,7]
[390510947,1760068239896,-519.5432325,0.000156,2]
[390510949,1760068239907,-438.86628471,0.000156,2]
[390510951,1760068239916,-151.0,0.00015891,7]
[390510953,1760068239925,-504.69622742,0.000162,2]
[390510955,1760068239934,-830.29445537,0.00016426,2]
[390510957,1760068239951,-369.70554463,0.00016426,2]
[390510959,1760068239960,-300.0,0.00016427,2]
[390510961,1760068239969,-148.99445537,0.00016428,3]
[390511257,1760068242985,-618.55554463,0.00016428,3]
[390511259,1760068242995,-383.77,0.00016428,3]
[390511261,1760068243005,-191.89,0.00016428,3]
[390511263,1760068243015,-575.69,0.00016428,3]
[390511265,1760068243024,-151.0,0.00016428,2]
[390511267,1760068243033,-151.0,0.00016428,2]
[390511269,1760068243043,-162.380719,0.00016428,2]
[390511271,1760068243053,-151.0,0.00016428,2]
[390511273,1760068243063,-151.0,0.00016428,2]
[390511275,1760068243073,-151.0,0.00016428,2]
[390511277,1760068243082,-151.0,0.00016428,2]
[390511279,1760068243091,-151.0,0.00016428,2]
[390511281,1760068243101,-162.380719,0.00016428,2]
[390511283,1760068243110,-151.0,0.00016428,2]
[390511285,1760068243119,-151.0,0.00016428,2]
[390511287,1760068243129,-151.0,0.00016428,2]
[390511289,1760068243142,-151.0,0.00016428,2]
[390511291,1760068243152,-151.0,0.00016428,2]
[390511294,1760068243161,-250.0,0.00016428,2]
[390511296,1760068243171,-251.25346138,0.00016428,2]
[390511297,1760068243180,-151.0,0.00016428,2]
[390511299,1760068243190,-151.0,0.00016428,2]
[390511301,1760068243199,-250.0,0.00016428,2]
[390511303,1760068243210,-151.0,0.00016428,2]
[390511305,1760068243219,-250.0,0.00016428,2]
[390511307,1760068243229,-151.0,0.00016428,2]
[390511309,1760068243238,-151.0,0.00016428,2]
[390511311,1760068243247,-250.0,0.00016428,2]
[390511313,1760068243256,-151.0,0.00016428,2]
[390511315,1760068243266,-250.0,0.00016428,2]
[390511317,1760068243275,-151.0,0.00016428,2]
[390511319,1760068243284,-151.0,0.00016428,2]
[390511321,1760068243294,-151.0,0.00016428,2]
[390511323,1760068243303,-151.0,0.00016428,2]
[390511325,1760068243313,-151.0,0.00016428,2]
[390511327,1760068243323,-1171.06657388,0.00016428,2]
[390514472,1760068375203,196.365929,0.00018975,20]
[390514483,1760068409907,3000.0,0.00024,30]
[390514490,1760068419186,379.684805,0.00018975,20]
[390514573,1760068683102,292.48465458,0.00015159,2]
[390514641,1760069020141,367.028645,0.00018975,20]
[390514647,1760069030437,189.820398,0.00018975,20]
[390514652,1760069034071,167.7811348,7.87e-05,2]
[390514695,1760069190323,700.0,0.00028767,120]
[390514696,1760069283407,176.92,0.00015095,2]
[390514704,1760069432299,-314.1950671,0.00015893,2]
[390514705,1760069432405,-119.34743294,0.00015893,2]
[390514706,1760069432415,-296.41423807,0.00016142,2]
[390514751,1760069437929,-272.90988032,0.00016142,2]
[390514752,1760069437983,-703.8538051,0.00016142,2]
[390514753,1760069437992,-1971.17333656,0.00016338,2]
[390514754,1760069438001,-580.0,0.00016427,2]
[390514755,1760069438010,-300.0,0.00016427,2]
[390514756,1760069438019,-631.83,0.00016428,3]
[390514757,1760069438028,-162.3428584,0.00016428,3]
[390514758,1760069438040,-153.5771416,0.00016428,3]
[390514759,1760069438049,-157.96,0.00016428,3]
[390514760,1760069438059,-473.89,0.00016428,3]
[390514761,1760069438068,-209.88353838,0.00016428,2]
[390514762,1760069438078,-151.0,0.00016428,2]
[390514763,1760069438087,-151.0,0.00016428,2]
[390514764,1760069438096,-151.0,0.00016428,2]
[390514765,1760069438105,-151.0,0.00016428,2]
[390514766,1760069438114,-151.0,0.00016428,2]
[390514767,1760069438123,-151.0,0.00016428,2]
[390514768,1760069438132,-178.97650996,0.00016428,2]
[390514769,1760069438141,-253.0383707,0.00016428,2]
[390514770,1760069438155,-151.0,0.00016428,2]
[390514771,1760069438164,-18603.8837,0.00016428,2]
[390514772,1760069438173,-151.0,0.00016428,2]
[390514774,1760069438183,-151.0,0.00016428,2]
[390514776,1760069438192,-261.63316405,0.00016428,2]
[390514778,1760069438201,-162.380719,0.00016428,2]
[390514780,1760069438210,-500.0,0.00016428,2]
[390514783,1760069438224,-201.04542999,0.00016437,2]
[390514785,1760069438240,-500.0,0.00016437,2]
[390514788,1760069438254,-211.78641505,0.00016437,2]
[390514791,1760069438270,-500.0,0.00016437,2]
[390514793,1760069438281,-500.0,0.00016437,2]
[390514795,1760069438293,-186.6792237,0.00016437,2]
[390514797,1760069438307,-304.43035829,0.00016437,2]
[390514800,1760069438320,-500.0,0.00016437,2]
[390514802,1760069438334,-165.01633255,0.00016437,2]
[390514805,1760069438348,-511.48392573,0.00016438,2]
[390514807,1760069438361,-500.0,0.00016438,2]
[390514809,1760069438375,-502.22264333,0.00016438,2]
[390514812,1760069438389,-500.0,0.00016438,2]
[390514814,1760069438403,-500.0,0.00016438,2]
[390514817,1760069438417,-500.0,0.00016438,2]
[390514819,1760069438430,-500.0,0.00016438,2]
[390514821,1760069438443,-298.37237178,0.00016438,2]
[390514824,1760069438456,-500.0,0.00016438,2]
[390514826,1760069438472,-500.0,0.00016438,2]
[390514828,1760069438487,-500.0,0.00016438,2]
[390514831,1760069438500,-500.0,0.00016438,2]
[390514833,1760069438514,-500.0,0.00016438,2]
[390514835,1760069438526,-500.0,0.00016438,2]
[390514837,1760069438537,-500.0,0.00016438,2]
[390514840,1760069438550,-787.79,0.00016438,2]
[390514842,1760069438561,-900.89,0.00016438,2]
[390514844,1760069438574,-500.0,0.00016438,2]
[390514846,1760069438585,-502.85873749,0.00016438,2]
[390514849,1760069438600,-500.0,0.00016438,2]
[390514851,1760069438613,-500.0,0.00016438,2]
[390514854,1760069438626,-500.0,0.00016438,2]
[390514856,1760069438637,-500.0,0.00016438,2]
[390514859,1760069438650,-500.0,0.00016438,2]
[390514861,1760069438661,-500.0,0.00016438,2]
[390514863,1760069438672,-500.0,0.00016438,2]
[390514865,1760069438682,-500.0,0.00016438,2]
[390514867,1760069438694,-500.0,0.00016438,2]
[390514869,1760069438706,-500.0,0.00016438,2]
[390514872,1760069438719,-500.0,0.00016438,2]
[390514874,1760069438732,-500.0,0.00016438,2]
[390514876,1760069438743,-500.0,0.00016438,2]
[390514879,1760069438753,-500.0,0.00016438,2]
[390514881,1760069438764,-500.0,0.00016438,2]
[390514883,1760069438777,-500.0,0.00016438,2]
[390514885,1760069438788,-247.62573965,0.00016438,2]
[390514887,1760069438800,-500.0,0.00016438,2]
[390514889,1760069438810,-503.80566,0.00016438,2]
[390514892,1760069438822,-589.02,0.00016438,2]
[390514894,1760069438833,-589.02,0.00016438,2]
[390514896,1760069438844,-500.0,0.00016438,2]
[390514898,1760069438857,-500.0,0.00016438,2]
[390514901,1760069438871,-500.0,0.00016438,2]
[390514903,1760069438883,-440.26320699,0.00016438,2]
[390514905,1760069438893,-500.0,0.00016438,2]
[390514907,1760069438905,-807.25,0.00016438,2]
[390514910,1760069438916,-500.0,0.00016438,2]
[390514912,1760069438927,-500.0,0.00016438,2]
[390514914,1760069438938,-200.0,0.00016438,2]
[390514916,1760069438950,-503.77541433,0.00016438,2]
[390514919,1760069438961,-503.27537938,0.00016438,2]
[390514921,1760069438973,-500.0,0.00016438,2]
[390514923,1760069438984,-501.28887295,0.00016438,2]
[390514925,1760069438996,-501.79205893,0.00016438,2]
[390514927,1760069439008,-500.0,0.00016438,2]
[390514930,1760069439019,-500.0,0.00016438,2]
[390514932,1760069439031,-399.44342891,0.00016438,2]
[390514934,1760069439042,-500.0,0.00016438,2]